,Portfolio,Expense Area,Cost Centre,Expense Type,Account Code,Amount,Supplier Name,SupplierId,Pay Date,Transaction No.
INSERTED DETAIL,Housing Revenue Account ,Voids & Allocations Team,MAN24,Personal Protective Clothing,0340,421.74,Arco Limited,100015,26/09/2013,10191089
INSERTED DETAIL,Housing Revenue Account ,Unplanned Maintenance and Repair,UMR00,R&M External Contractors,0100,6423.94,AWM Electrical Contractors Ltd,100051,05/09/2013,10190688
INSERTED DETAIL,Housing Revenue Account ,Repairs and Maintenance - Void works,UMR09,R&M External Contractors,0100,3322.93,AWM Electrical Contractors Ltd,100051,05/09/2013,10190688
INSERTED DETAIL,Capital Program ,Disabled Adaptations,HCR01,Capital Contract Payments,5000,80.61,AWM Electrical Contractors Ltd,100051,05/09/2013,10190688
INSERTED DETAIL,Housing Revenue Account ,Unplanned Maintenance and Repair,UMR00,R&M External Contractors,0100,505.06,AWM Electrical Contractors Ltd,100051,12/09/2013,10190843
INSERTED DETAIL,Housing Revenue Account ,Repairs and Maintenance - Void works,UMR09,R&M External Contractors,0100,741.15,AWM Electrical Contractors Ltd,100051,12/09/2013,10190843
INSERTED DETAIL,Housing Revenue Account ,Avon Court AP,AGP02,Maintenance of Equipment,0301,15.00,AWM Electrical Contractors Ltd,100051,12/09/2013,10190843
INSERTED DETAIL,Housing Revenue Account ,Frederick Press Way AP,AGP06,Maintenance of Equipment,0301,80.00,AWM Electrical Contractors Ltd,100051,12/09/2013,10190843
INSERTED DETAIL,Housing Revenue Account ,John Thwaites Close AP,AGP08,Maintenance of Equipment,0301,30.00,AWM Electrical Contractors Ltd,100051,12/09/2013,10190843
INSERTED DETAIL,Housing Revenue Account ,Stacey Court AP,AGP12,Maintenance of Equipment,0301,57.50,AWM Electrical Contractors Ltd,100051,12/09/2013,10190843
INSERTED DETAIL,Housing Revenue Account ,Stretton Court AP,AGP13,Maintenance of Equipment,0301,20.00,AWM Electrical Contractors Ltd,100051,12/09/2013,10190843
INSERTED DETAIL,Housing Revenue Account ,Sun Street/Windsor Street AP,AGP14,Maintenance of Equipment,0301,10.00,AWM Electrical Contractors Ltd,100051,12/09/2013,10190843
INSERTED DETAIL,Housing Revenue Account ,Tanser Court AP,AGP17,Maintenance of Equipment,0301,102.50,AWM Electrical Contractors Ltd,100051,12/09/2013,10190843
INSERTED DETAIL,Housing Revenue Account ,Eliot Court AP,AGP25,Maintenance of Equipment,0301,92.50,AWM Electrical Contractors Ltd,100051,12/09/2013,10190843
INSERTED DETAIL,Housing Revenue Account ,Hirst Close AP,AGP33,Maintenance of Equipment,0301,60.00,AWM Electrical Contractors Ltd,100051,12/09/2013,10190843
INSERTED DETAIL,Housing Revenue Account ,Harold Cox Place AP,AGP51,Maintenance of Equipment,0301,5.00,AWM Electrical Contractors Ltd,100051,12/09/2013,10190843
INSERTED DETAIL,Housing Revenue Account ,Unplanned Maintenance and Repair,UMR00,R&M External Contractors,0100,814.28,AWM Electrical Contractors Ltd,100051,19/09/2013,10191211
INSERTED DETAIL,Housing Revenue Account ,Repairs and Maintenance - Void works,UMR09,R&M External Contractors,0100,590.50,AWM Electrical Contractors Ltd,100051,19/09/2013,10191211
INSERTED DETAIL,Capital Program ,Kitchen Modifications,HIK10,Capital Contract Payments,5000,6893.58,A C E Carpentry & Joinery Contractors Ltd,100085,05/09/2013,10190620
INSERTED DETAIL,Capital Program ,Kitchen Modifications,HIK10,Capital Contract Payments,5000,9191.44,A C E Carpentry & Joinery Contractors Ltd,100085,12/09/2013,10190918
INSERTED DETAIL,Capital Program ,Kitchen Modifications,HIK10,Capital Contract Payments,5000,3910.00,A C E Carpentry & Joinery Contractors Ltd,100085,12/09/2013,10190963
INSERTED DETAIL,Capital Program ,Kitchen Modifications,HIK10,Capital Contract Payments,5000,9191.44,A C E Carpentry & Joinery Contractors Ltd,100085,19/09/2013,10191283
INSERTED DETAIL,Capital Program ,Kitchen Modifications,HIK10,Capital Contract Payments,5000,1400.00,A C E Carpentry & Joinery Contractors Ltd,100085,26/09/2013,10191389
INSERTED DETAIL,Capital Program ,Kitchen Modifications,HIK10,Capital Contract Payments,5000,9191.44,A C E Carpentry & Joinery Contractors Ltd,100085,26/09/2013,10191503
INSERTED DETAIL,Capital Program ,Kitchen Modifications,HIK10,Capital Contract Payments,5000,1120.00,A C E Carpentry & Joinery Contractors Ltd,100085,26/09/2013,10191666
INSERTED DETAIL,Resources & Corporate Governance ,Council Tax and NNDR Collection,CTX01,External Contractor & Operator,0742,109.50,Bristow & Sutor,100159,05/09/2013,10190563
INSERTED DETAIL,Resources & Corporate Governance ,Council Tax and NNDR Collection,CTX01,External Contractor & Operator,0742,42.50,Bristow & Sutor,100159,26/09/2013,10191640
INSERTED DETAIL,Housing Revenue Account ,Control Centre (HRA),CCE00,Telephone Expenses,0371,4580.58,British Telecommunications Plc,100161,26/09/2013,10190069
INSERTED DETAIL,Housing Revenue Account ,Multi-Storey Flats,MSF00,Telephone Expenses,0371,77.89,British Telecommunications Plc,100161,26/09/2013,10190069
INSERTED DETAIL,Sustainable Inclusive Communities,Sewage Disposal Plant,SDP00,Telephone Expenses,0371,54.15,British Telecommunications Plc,100161,26/09/2013,10190069
INSERTED DETAIL,Sustainable Inclusive Communities,Woodside Park,TVR00,Telephone Expenses,0371,115.24,British Telecommunications Plc,100161,26/09/2013,10190069
INSERTED DETAIL,Resources & Corporate Governance ,Central Telephone Service,TEL00,Telephone Expenses,0371,3394.50,British Telecommunications Plc,100161,12/09/2013,10191012
INSERTED DETAIL,Capital Program ,Parish and Rural Capital Spending,CGR03,Capital Grants,5014,4773.56,Binley Woods Village Hall,100193,19/09/2013,10191418
INSERTED DETAIL,Housing Revenue Account ,Control Centre CCTV,CCE01,Maintenance of Equipment,0301,10972.50,Barron McCann Ltd,100248,26/09/2013,10191621
INSERTED DETAIL,Housing Revenue Account ,Unplanned Maintenance and Repair,UMR00,R&M External Contractors,0100,878.42,Barron McCann Ltd,100248,26/09/2013,10191667
INSERTED DETAIL,Resources & Corporate Governance,Corporate Property R&M,CPA01,R&M External Contractors,0100,1101.00,Chillaire Service & Maintenance Ltd,100305,26/09/2013,10191537
INSERTED DETAIL,Resources & Corporate Governance,Handy man,WHM00,External Contractor & Operator,0742,692.96,Cwikskip (Tailby Brack Ltd),100325,05/09/2013,10190502
INSERTED DETAIL,Economy Development & Culture,Economic Development General,ECD00,Development Activities,0450,600.00,Coventry & Warwickshire Chamber Of Commerce,100412,19/09/2013,10191328
INSERTED DETAIL,Resources & Corporate Governance,Corporate Property R&M,CPA01,R&M External Contractors,0100,450.44,Contract Fire Systems Ltd,100425,26/09/2013,10191295
INSERTED DETAIL,Sustainable Environment ,Clinical Waste,REF04,External Contractor & Operator,0742,515.49,OCS Group UK Ltd t/a Cannon,100436,19/09/2013,10191231
INSERTED DETAIL,Sustainable Environment ,Clinical Waste,REF04,External Contractor & Operator,0742,483.82,OCS Group UK Ltd t/a Cannon,100436,19/09/2013,10191232
INSERTED DETAIL,Housing Revenue Account ,Supervision and Management General,MAN00,Cash Collection,0744,583.01,Commercial Collection Services,100520,26/09/2013,10190591
INSERTED DETAIL,Resources & Corporate Governance ,Domestic Waste Collection,WWC00,Vehicle Repair and Maintenance,0200,651.08,Dennis Eagle Ltd,100559,26/09/2013,10191451
INSERTED DETAIL,Resources & Corporate Governance ,Domestic Waste Collection,WWC00,Vehicle Repair and Maintenance,0200,1037.46,Dennis Eagle Ltd,100559,26/09/2013,10191452
INSERTED DETAIL,Capital Program ,Parish and Rural Capital Spending,CGR03,Capital Grants,5014,6078.80,Dunchurch Parish Council,100564,26/09/2013,10191599
INSERTED DETAIL,Capital Program ,Bathroom Modifications,HIS01,Capital Contract Payments,5000,14970.00,JADA Building & Maintenance Services Ltd,100583,05/09/2013,10190678
INSERTED DETAIL,Capital Program ,Disabled Adaptations,HCR01,Capital Contract Payments,5000,4500.00,JADA Building & Maintenance Services Ltd,100583,05/09/2013,10190845
INSERTED DETAIL,Capital Program ,Bathroom Modifications,HIS01,Capital Contract Payments,5000,3359.00,JADA Building & Maintenance Services Ltd,100583,05/09/2013,10190845
INSERTED DETAIL,Capital Program ,Bathroom Modifications,HIS01,Capital Contract Payments,5000,25755.00,JADA Building & Maintenance Services Ltd,100583,12/09/2013,10191091
INSERTED DETAIL,Capital Program ,Bathroom Modifications,HIS01,Capital Contract Payments,5000,24790.00,JADA Building & Maintenance Services Ltd,100583,19/09/2013,10191402
INSERTED DETAIL,Capital Program ,Bathroom Modifications,HIS01,Capital Contract Payments,5000,25595.00,JADA Building & Maintenance Services Ltd,100583,26/09/2013,10191637
INSERTED DETAIL,Economy Development & Culture,Sports Development,LSD06,Development Activities,0450,595.83,Draycote Water Sailing Club,100591,26/09/2013,10191241
INSERTED DETAIL,Economy Development & Culture,Grants and Subscriptions,LGS00,Grants To Voluntary Organisations,0720,1000.00,Draycote Water Sailing Club,100591,19/09/2013,10191366
INSERTED DETAIL,Housing Revenue Account ,Lesley Souter House AP,AGP16,Gas,0131,615.82,ESPO,100641,12/09/2013,10190124
INSERTED DETAIL,Housing Revenue Account ,Albert Square AP,AGP20,Gas,0131,677.86,ESPO,100641,05/09/2013,10190125
INSERTED DETAIL,Capital Program ,Queen's Diamond Jubilee Leisure Centre Project,LEI03,Capital Contract Payments,5000,780.00,ESPO,100641,26/09/2013,10190969
INSERTED DETAIL,Housing Revenue Account ,Tanser Court AP,AGP17,Gas,0131,695.59,ESPO,100641,26/09/2013,10191259
INSERTED DETAIL,Housing Revenue Account ,Lesley Souter House AP,AGP16,Gas,0131,644.61,ESPO,100641,26/09/2013,10191260
INSERTED DETAIL,Housing Revenue Account ,Albert Square AP,AGP20,Gas,0131,729.84,ESPO,100641,26/09/2013,10191261
INSERTED DETAIL,Resources & Corporate Governance,Corporate Property Central Utilities,CPA02,Gas,0131,1296.18,ESPO,100641,19/09/2013,10191266
INSERTED DETAIL,Resources & Corporate Governance,Handy man,WHM00,Agency Staff,0003,605.82,First Personnel Group Plc,100807,19/09/2013,10191239
INSERTED DETAIL,Capital Program ,Fire Risk Assessment,HCE18,R&M External Contractors,0100,9700.36,Nationwide Windows Ltd,100808,26/09/2013,10191612
INSERTED DETAIL,Capital Program ,Fire Risk Assessment,HCE18,R&M External Contractors,0100,9621.76,Nationwide Windows Ltd,100808,26/09/2013,10191613
INSERTED DETAIL,Resources & Corporate Governance ,Town Hall,OFF00,Materials,0303,953.40,Greenham,100890,19/09/2013,10190717
INSERTED DETAIL,Resources & Corporate Governance ,Human Resources Centralised Services,RES31,Recruitment Expenses,0012,426.00,TMP (UK) LTD,100972,26/09/2013,10191474
INSERTED DETAIL,Resources & Corporate Governance ,Human Resources Centralised Services,RES31,Recruitment Expenses,0012,735.00,TMP (UK) LTD,100972,26/09/2013,10191475
INSERTED DETAIL,Resources & Corporate Governance,Corporate Property R&M,CPA01,R&M External Contractors,0100,979.00,ThyssenKrupp Elevator UK,100985,19/09/2013,10190975
INSERTED DETAIL,Resources & Corporate Governance,Corporate Property R&M,CPA01,R&M External Contractors,0100,2328.00,ThyssenKrupp Elevator UK,100985,19/09/2013,10190976
INSERTED DETAIL,Resources & Corporate Governance,Corporate Property R&M,CPA01,R&M External Contractors,0100,3043.00,ThyssenKrupp Elevator UK,100985,19/09/2013,10190977
INSERTED DETAIL,Resources & Corporate Governance,Corporate Property R&M,CPA01,R&M External Contractors,0100,532.50,ThyssenKrupp Elevator UK,100985,26/09/2013,10191022
INSERTED DETAIL,Resources & Corporate Governance ,Town Hall,OFF00,Furniture,0302,1337.40,IE Office Equipment Ltd,101114,19/09/2013,10191476
INSERTED DETAIL,Housing Revenue Account ,Supervision and Management General,MAN00,Subscriptions,0421,750.00,Chartered Institute Of Housing,101122,05/09/2013,10190676
INSERTED DETAIL,Housing Revenue Account ,Control Centre (HRA),CCE00,New Equipment,0300,3190.00,Chubb Systems LTD,101154,05/09/2013,10190482
INSERTED DETAIL,Resources & Corporate Governance,Handy man,WHM00,External Contractor & Operator,0742,580.70,Clews Recycling Limited,101213,19/09/2013,10189730
INSERTED DETAIL,Resources & Corporate Governance ,Grounds Maintenance,WGM00,External Contractor & Operator,0742,7484.00,K A Hicks,101216,19/09/2013,10191068
INSERTED DETAIL,Sustainable Environment ,Caldecott Park/Town Centre Area,PKS00,External Contractor & Operator,0742,1399.00,Lilbourne Turf Supplies,101225,12/09/2013,10185244
INSERTED DETAIL,,User Balance Sheet Cost Centre,BSU,Section Agreements,9865,4452.48,Long Lawford Parish Council,101228,19/09/2013,10191431
INSERTED DETAIL,Resources & Corporate Governance,Handy man,WHM00,Materials,0303,574.00,Melbros Ltd,101291,26/09/2013,10189536
INSERTED DETAIL,Resources & Corporate Governance,Handy man,WHM00,Materials,0303,447.01,Melbros Ltd,101291,26/09/2013,10190438
INSERTED DETAIL,Resources & Corporate Governance,Handy man,WHM00,Materials,0303,449.17,Melbros Ltd,101291,19/09/2013,10190439
INSERTED DETAIL,Resources & Corporate Governance,Handy man,WHM00,Materials,0303,1074.51,Melbros Ltd,101291,05/09/2013,10190444
INSERTED DETAIL,Resources & Corporate Governance,Handy man,WHM00,Materials,0303,418.00,Melbros Ltd,101291,05/09/2013,10190554
INSERTED DETAIL,Economy Development & Culture,Street Furniture,HIG01,External Contractor & Operator,0742,2758.40,Midland Signs (Leicester) Ltd,101295,12/09/2013,10191095
INSERTED DETAIL,Resources & Corporate Governance,Central Business Support Services,CSS15,Photocopying,0354,2220.96,Neopost Ltd,101365,19/09/2013,10191371
INSERTED DETAIL,Economy Development & Culture,Visitor Centre,VSC00,Events Tickets - Zero Rated,1405,2308.15,National Express Ltd,101392,12/09/2013,10190915
INSERTED DETAIL,Capital Program ,Disc. Grants Home Safety Surveys,GRA03,Capital Contract Payments,5000,35000.00,Orbit Group Limited,101414,26/09/2013,10190297
INSERTED DETAIL,Resources & Corporate Governance ,Grounds Maintenance,WGM00,Vehicle Running Costs,0201,440.00,Post Office Ltd,101429,19/09/2013,10191364
INSERTED DETAIL,Resources & Corporate Governance ,Street Cleansing,WSC00,Vehicle Running Costs,0201,220.00,Post Office Ltd,101429,19/09/2013,10191364
INSERTED DETAIL,Resources & Corporate Governance ,Domestic Waste Collection,WWC00,Vehicle Running Costs,0201,280.00,Post Office Ltd,101429,19/09/2013,10191364
INSERTED DETAIL,Sustainable Inclusive Communities,Sewage Disposal Plant,SDP00,R&M External Contractors,0100,800.28,PJT Pumping Services,101438,12/09/2013,10190968
INSERTED DETAIL,Capital Program ,Bathroom Modifications,HIS01,Capital Contract Payments,5000,39300.00,Reeds Plumbing & Heating Contractors Ltd,101504,12/09/2013,10190799
INSERTED DETAIL,Capital Program ,Bathroom Modifications,HIS01,Capital Contract Payments,5000,4818.00,Reeds Plumbing & Heating Contractors Ltd,101504,05/09/2013,10190846
INSERTED DETAIL,Capital Program ,Disabled Adaptations,HCR01,Capital Contract Payments,5000,70.00,Reeds Plumbing & Heating Contractors Ltd,101504,12/09/2013,10190966
INSERTED DETAIL,Capital Program ,Bathroom Modifications,HIS01,Capital Contract Payments,5000,759.00,Reeds Plumbing & Heating Contractors Ltd,101504,12/09/2013,10190966
INSERTED DETAIL,Economy Development & Culture,Building Control Services,BCS00,Postage & Distribution,0370,0.28,Royal Mail,101554,19/09/2013,10190817
INSERTED DETAIL,Economy Development & Culture,Building Control Services Non-Fee Earning Account,BCS01,Postage & Distribution,0370,0.28,Royal Mail,101554,19/09/2013,10190817
INSERTED DETAIL,Economy Development & Culture,Building Regulation Fee Earning Account,BCS99,Postage & Distribution,0370,5.08,Royal Mail,101554,19/09/2013,10190817
INSERTED DETAIL,Economy Development & Culture,Car Parks General,CPK01,Postage & Distribution,0370,28.85,Royal Mail,101554,19/09/2013,10190817
INSERTED DETAIL,Resources & Corporate Governance,Central Business Support Services,CSS15,Postage & Distribution,0370,274.41,Royal Mail,101554,19/09/2013,10190817
INSERTED DETAIL,Resources & Corporate Governance ,Council Tax and NNDR Collection,CTX01,Postage & Distribution,0370,300.09,Royal Mail,101554,19/09/2013,10190817
INSERTED DETAIL,Economy Development & Culture,Decrim. of Car Parking on street parking,DPE02,Postage & Distribution,0370,115.40,Royal Mail,101554,19/09/2013,10190817
INSERTED DETAIL,Resources & Corporate Governance ,Electoral Registration,ERG00,Postage & Distribution,0370,6.58,Royal Mail,101554,19/09/2013,10190817
INSERTED DETAIL,Sustainable Inclusive Communities,Housing Benefit Administration,HBA00,Postage & Distribution,0370,147.07,Royal Mail,101554,19/09/2013,10190817
INSERTED DETAIL,Housing Revenue Account ,Supervision and Management General,MAN00,Postage & Distribution,0370,48.01,Royal Mail,101554,19/09/2013,10190817
INSERTED DETAIL,Economy Development & Culture,Planning General/Income,PLN00,Postage & Distribution,0370,172.30,Royal Mail,101554,19/09/2013,10190817
INSERTED DETAIL,Economy Development & Culture,Visitor Centre,VSC00,Postage & Distribution,0370,0.47,Royal Mail,101554,19/09/2013,10190817
INSERTED DETAIL,Resources & Corporate Governance ,General Administration,WAD00,Postage & Distribution,0370,23.75,Royal Mail,101554,19/09/2013,10190817
INSERTED DETAIL,Sustainable Inclusive Communities,Woodside Park,TVR00,Water Services,0143,1866.86,Severn Trent Water Ltd,101610,05/09/2013,10190659
INSERTED DETAIL,Resources & Corporate Governance,Corporate Property Central Utilities,CPA02,Water Services,0143,601.22,Severn Trent Water Ltd,101610,19/09/2013,10190698
INSERTED DETAIL,Resources & Corporate Governance,Corporate Property Central Utilities,CPA02,Water Services,0143,3856.18,Severn Trent Water Ltd,101610,19/09/2013,10190835
INSERTED DETAIL,Housing Revenue Account ,Lesley Souter House AP,AGP16,Water Services,0143,1868.87,Severn Trent Water Ltd,101610,12/09/2013,10190850
INSERTED DETAIL,Resources & Corporate Governance ,Central Telephone Service,TEL00,Maintenance of Equipment,0301,11913.48,Siemens Enterprise Communications Ltd,101616,26/09/2013,10190658
INSERTED DETAIL,Capital Program ,Disabled Facilities Grant,REN01,Capital Grants,5014,2117.01,Stannah Stairlifts Ltd,101623,19/09/2013,10191193
INSERTED DETAIL,Housing Revenue Account ,Unplanned Maintenance and Repair,UMR00,R&M External Contractors,0100,3445.00,Steve Diston Contract Flooring,101668,19/09/2013,10191403
INSERTED DETAIL,Resources & Corporate Governance,Corporate Property R&M,CPA01,R&M External Contractors,0100,565.00,Secom Plc,101671,26/09/2013,10190860
INSERTED DETAIL,Resources & Corporate Governance,Handy man,WHM00,Materials,0303,443.14,Travis Perkins Trading Co Ltd,101732,12/09/2013,10187425
INSERTED DETAIL,Resources & Corporate Governance,Handy man,WHM00,Materials,0303,1191.43,Travis Perkins Trading Co Ltd,101732,12/09/2013,10187498
INSERTED DETAIL,Resources & Corporate Governance,Handy man,WHM00,Materials,0303,525.00,Travis Perkins Trading Co Ltd,101732,12/09/2013,10188353
INSERTED DETAIL,Resources & Corporate Governance,Handy man,WHM00,Materials,0303,2246.73,Travis Perkins Trading Co Ltd,101732,19/09/2013,10190134
INSERTED DETAIL,Resources & Corporate Governance,Handy man,WHM00,Materials,0303,2876.94,Travis Perkins Trading Co Ltd,101732,26/09/2013,10190171
INSERTED DETAIL,Resources & Corporate Governance,Handy man,WHM00,Contract Hire,0220,448.15,Travis Perkins Trading Co Ltd,101732,19/09/2013,10190952
INSERTED DETAIL,Resources & Corporate Governance,Handy man,WHM00,Materials,0303,-2354.85,Travis Perkins Trading Co Ltd,101732,26/09/2013,10190957
INSERTED DETAIL,Resources & Corporate Governance,Handy man,WHM00,Vehicle Running Costs,0201,59.00,HI-Q Motorway,101736,19/09/2013,10190648
INSERTED DETAIL,Resources & Corporate Governance ,Street Cleansing,WSC00,Vehicle Running Costs,0201,196.97,HI-Q Motorway,101736,19/09/2013,10190648
INSERTED DETAIL,Resources & Corporate Governance ,Domestic Waste Collection,WWC00,Vehicle Running Costs,0201,393.94,HI-Q Motorway,101736,19/09/2013,10190648
INSERTED DETAIL,Resources & Corporate Governance,Handy man,WHM00,Vehicle Running Costs,0201,95.00,HI-Q Motorway,101736,19/09/2013,10190946
INSERTED DETAIL,Resources & Corporate Governance ,Street Cleansing,WSC00,Vehicle Running Costs,0201,170.00,HI-Q Motorway,101736,19/09/2013,10190946
INSERTED DETAIL,Resources & Corporate Governance ,Domestic Waste Collection,WWC00,Vehicle Running Costs,0201,668.00,HI-Q Motorway,101736,19/09/2013,10190946
INSERTED DETAIL,Resources & Corporate Governance ,Domestic Waste Collection,WWC00,Vehicle Running Costs,0201,451.50,HI-Q Motorway,101736,19/09/2013,10190947
INSERTED DETAIL,Resources & Corporate Governance ,Domestic Waste Collection,WWC00,Vehicle Running Costs,0201,425.94,HI-Q Motorway,101736,26/09/2013,10191545
INSERTED DETAIL,Resources & Corporate Governance ,Domestic Waste Collection,WWC00,Vehicle Running Costs,0201,875.98,HI-Q Motorway,101736,26/09/2013,10191550
INSERTED DETAIL,Resources & Corporate Governance ,Trade Waste Collection,WWC01,Vehicle Running Costs,0201,392.00,HI-Q Motorway,101736,26/09/2013,10191550
INSERTED DETAIL,Resources & Corporate Governance ,Grounds Maintenance,WGM00,Vehicle Running Costs,0201,159.11,HI-Q Motorway,101736,26/09/2013,10191552
INSERTED DETAIL,Resources & Corporate Governance,Handy man,WHM00,Vehicle Running Costs,0201,53.62,HI-Q Motorway,101736,26/09/2013,10191552
INSERTED DETAIL,Resources & Corporate Governance ,Domestic Waste Collection,WWC00,Vehicle Running Costs,0201,542.98,HI-Q Motorway,101736,26/09/2013,10191552
INSERTED DETAIL,Capital Program ,Viaduct Cycleways,CYC02,Capital Contract Payments,5000,1756.00,Wragge & Co.,101856,19/09/2013,10190691
INSERTED DETAIL,Capital Program ,Electric to Gas Conversions,HIM04,Capital Contract Payments,5000,5772.76,Adroit Services Ltd,101939,05/09/2013,10190621
INSERTED DETAIL,Housing Revenue Account ,Unplanned Maintenance and Repair,UMR00,R&M External Contractors,0100,547.12,Adroit Services Ltd,101939,05/09/2013,10190687
INSERTED DETAIL,Housing Revenue Account ,Gas Heating Systems,UMR01,R&M External Contractors,0100,202.78,Adroit Services Ltd,101939,05/09/2013,10190687
INSERTED DETAIL,Capital Program ,Electric to Gas Conversions,HIM04,Capital Contract Payments,5000,336.00,Adroit Services Ltd,101939,05/09/2013,10190687
INSERTED DETAIL,Capital Program ,Electric to Gas Conversions,HIM04,Capital Contract Payments,5000,8659.14,Adroit Services Ltd,101939,12/09/2013,10190908
INSERTED DETAIL,Housing Revenue Account ,Unplanned Maintenance and Repair,UMR00,R&M External Contractors,0100,535.12,Adroit Services Ltd,101939,12/09/2013,10191181
INSERTED DETAIL,Capital Program ,Electric to Gas Conversions,HIM04,Capital Contract Payments,5000,549.14,Adroit Services Ltd,101939,12/09/2013,10191181
INSERTED DETAIL,Capital Program ,Electric to Gas Conversions,HIM04,Capital Contract Payments,5000,5772.76,Adroit Services Ltd,101939,19/09/2013,10191285
INSERTED DETAIL,Resources & Corporate Governance ,"Communications, Consultation and Information Team",BTR20,Publicity & Marketing,0377,432.75,Johnston Publishing Ltd,107468,12/09/2013,10191096
INSERTED DETAIL,Resources & Corporate Governance ,Central Telephone Service,TEL00,Telephone Expenses,0371,974.05,British Telecommunications PLC,108425,26/09/2013,10191635
INSERTED DETAIL,Resources & Corporate Governance ,Garage Internal,WVR01,Materials,0303,33864.00,Watson Petroleum,110361,12/09/2013,10190873
INSERTED DETAIL,Economy Development & Culture,Street Furniture,HIG01,External Contractor & Operator,0742,429.78,Croxford Electrical Ltd,110451,26/09/2013,10190660
INSERTED DETAIL,Resources & Corporate Governance ,Warwickshire On Line Partnership,JCC10,Payments to Other Local Authorities,0710,13307.07,Warwick District Council,111228,12/09/2013,10191189
INSERTED DETAIL,Capital Program ,Purchase of Vehicles,VHC00,Miscellaneous Capital Expenditure,5020,3190.00,Vision Techniques (UK) LTD,111526,19/09/2013,10190882
INSERTED DETAIL,Capital Program ,Purchase of Vehicles,VHC00,Miscellaneous Capital Expenditure,5020,3190.00,Vision Techniques (UK) LTD,111526,19/09/2013,10190883
INSERTED DETAIL,Capital Program ,Purchase of Vehicles,VHC00,Miscellaneous Capital Expenditure,5020,3190.00,Vision Techniques (UK) LTD,111526,19/09/2013,10190884
INSERTED DETAIL,Capital Program ,Purchase of Vehicles,VHC00,Miscellaneous Capital Expenditure,5020,3190.00,Vision Techniques (UK) LTD,111526,19/09/2013,10190885
INSERTED DETAIL,Capital Program ,Purchase of Vehicles,VHC00,Miscellaneous Capital Expenditure,5020,3190.00,Vision Techniques (UK) LTD,111526,19/09/2013,10190886
INSERTED DETAIL,Capital Program ,Purchase of Vehicles,VHC00,Miscellaneous Capital Expenditure,5020,3190.00,Vision Techniques (UK) LTD,111526,19/09/2013,10190887
INSERTED DETAIL,Capital Program ,Purchase of Vehicles,VHC00,Miscellaneous Capital Expenditure,5020,3190.00,Vision Techniques (UK) LTD,111526,19/09/2013,10190888
INSERTED DETAIL,Capital Program ,Purchase of Vehicles,VHC00,Miscellaneous Capital Expenditure,5020,3190.00,Vision Techniques (UK) LTD,111526,19/09/2013,10190889
INSERTED DETAIL,Capital Program ,Purchase of Vehicles,VHC00,Miscellaneous Capital Expenditure,5020,3190.00,Vision Techniques (UK) LTD,111526,19/09/2013,10190890
INSERTED DETAIL,Capital Program ,Purchase of Vehicles,VHC00,Miscellaneous Capital Expenditure,5020,3190.00,Vision Techniques (UK) LTD,111526,19/09/2013,10191113
INSERTED DETAIL,Capital Program ,Purchase of Vehicles,VHC00,Miscellaneous Capital Expenditure,5020,3190.00,Vision Techniques (UK) LTD,111526,19/09/2013,10191212
INSERTED DETAIL,Capital Program ,Purchase of Vehicles,VHC00,Miscellaneous Capital Expenditure,5020,3190.00,Vision Techniques (UK) LTD,111526,19/09/2013,10191215
INSERTED DETAIL,Capital Program ,Purchase of Vehicles,VHC00,Miscellaneous Capital Expenditure,5020,3190.00,Vision Techniques (UK) LTD,111526,19/09/2013,10191216
INSERTED DETAIL,Capital Program ,Purchase of Vehicles,VHC00,Miscellaneous Capital Expenditure,5020,3190.00,Vision Techniques (UK) LTD,111526,19/09/2013,10191217
INSERTED DETAIL,Capital Program ,Purchase of Vehicles,VHC00,Miscellaneous Capital Expenditure,5020,3190.00,Vision Techniques (UK) LTD,111526,19/09/2013,10191218
INSERTED DETAIL,Capital Program ,Purchase of Vehicles,VHC00,Miscellaneous Capital Expenditure,5020,3190.00,Vision Techniques (UK) LTD,111526,19/09/2013,10191219
INSERTED DETAIL,Capital Program ,Open Revenues Data Cleansing,OPR01,Capital Contract Payments,5000,1400.00,Civica UK Ltd,112724,26/09/2013,10190248
INSERTED DETAIL,Capital Program ,Replacement Sundry Income System,RSI00,Capital Contract Payments,5000,7000.00,Civica UK Ltd,112724,12/09/2013,10190978
INSERTED DETAIL,Resources & Corporate Governance ,Maintenance of Customer Services Systems,CIS21,Software Maintenance,0374,1626.48,Civica UK Ltd,112724,19/09/2013,10191404
INSERTED DETAIL,Capital Program ,Replacement Sundry Income System,RSI00,Capital Contract Payments,5000,875.00,Civica UK Ltd,112724,19/09/2013,10191467
INSERTED DETAIL,Capital Program ,Replacement Sundry Income System,RSI00,Capital Contract Payments,5000,990.00,Civica UK Ltd,112724,26/09/2013,10191495
INSERTED DETAIL,Resources & Corporate Governance ,Domestic Waste Collection,WWC00,Agency Staff,0003,566.32,Extra Personnel Limited,112996,12/09/2013,10191116
INSERTED DETAIL,Resources & Corporate Governance ,Human Resources,RES30,Subscriptions,0421,600.00,Reed Business Information,113047,12/09/2013,10190994
INSERTED DETAIL,Resources & Corporate Governance ,Legal Services,DEM20,Ref. Books Journals & Magazines,0353,603.25,Lexis Nexis Butterworths,114132,12/09/2013,10187541
INSERTED DETAIL,Housing Revenue Account ,Unplanned Maintenance and Repair,UMR00,R&M External Contractors,0100,1291.30,Temple Lifts Ltd,114738,12/09/2013,10190910
INSERTED DETAIL,Housing Revenue Account ,Unplanned Maintenance and Repair,UMR00,R&M External Contractors,0100,1291.30,Temple Lifts Ltd,114738,12/09/2013,10190911
INSERTED DETAIL,Housing Revenue Account ,Unplanned Maintenance and Repair,UMR00,R&M External Contractors,0100,1291.30,Temple Lifts Ltd,114738,12/09/2013,10190912
INSERTED DETAIL,Housing Revenue Account ,Unplanned Maintenance and Repair,UMR00,R&M External Contractors,0100,1341.40,Temple Lifts Ltd,114738,12/09/2013,10191004
INSERTED DETAIL,Housing Revenue Account ,Unplanned Maintenance and Repair,UMR00,R&M External Contractors,0100,1341.40,Temple Lifts Ltd,114738,12/09/2013,10191005
INSERTED DETAIL,Housing Revenue Account ,Unplanned Maintenance and Repair,UMR00,R&M External Contractors,0100,1341.40,Temple Lifts Ltd,114738,12/09/2013,10191006
INSERTED DETAIL,Sustainable Environment ,Cemeteries General,CEM00,Purchases for Resale,0305,1187.00,Streetmaster (South Wales) Ltd,114898,05/09/2013,10190614
INSERTED DETAIL,Sustainable Environment ,Cemeteries General,CEM00,External Contractor & Operator,0742,599.50,Streetmaster (South Wales) Ltd,114898,05/09/2013,10190614
INSERTED DETAIL,Sustainable Inclusive Communities,Housing Options Team,HOT00,Rents,0140,506.72,Diamond House Hotel,115070,19/09/2013,10189717
INSERTED DETAIL,Sustainable Inclusive Communities,Housing Options Team,HOT00,Rents,0140,728.41,Diamond House Hotel,115070,19/09/2013,10190881
INSERTED DETAIL,Sustainable Inclusive Communities,Housing Options Team,HOT00,Rents,0140,560.00,Diamond House Hotel,115070,19/09/2013,10190899
INSERTED DETAIL,Sustainable Inclusive Communities,Housing Options Team,HOT00,Rents,0140,525.00,Diamond House Hotel,115070,19/09/2013,10191385
INSERTED DETAIL,Sustainable Inclusive Communities,Housing Options Team,HOT00,Rents,0140,455.00,Diamond House Hotel,115070,26/09/2013,10191388
INSERTED DETAIL,Economy Development & Culture,Grants and Subscriptions,LGS00,Grants To Voluntary Organisations,0720,1000.00,Rugby Gymnastics Club,118009,19/09/2013,10191457
INSERTED DETAIL,Resources & Corporate Governance,Corporate Property Central Utilities,CPA02,Electricity,0130,9270.69,Southern Electric,118976,19/09/2013,10191398
INSERTED DETAIL,Resources & Corporate Governance ,Toilet Cleaning,WBC01,Agency Staff,0003,199.40,G-Staff Ltd,120173,19/09/2013,10190619
INSERTED DETAIL,Resources & Corporate Governance ,Street Cleansing,WSC00,Agency Staff,0003,219.34,G-Staff Ltd,120173,19/09/2013,10190619
INSERTED DETAIL,Resources & Corporate Governance ,Domestic Waste Collection,WWC00,Agency Staff,0003,1096.27,G-Staff Ltd,120173,19/09/2013,10190619
INSERTED DETAIL,Resources & Corporate Governance ,Trade Waste Collection,WWC01,Agency Staff,0003,604.89,G-Staff Ltd,120173,19/09/2013,10190619
INSERTED DETAIL,Resources & Corporate Governance ,Toilet Cleaning,WBC01,Agency Staff,0003,441.50,G-Staff Ltd,120173,26/09/2013,10190982
INSERTED DETAIL,Resources & Corporate Governance ,Street Cleansing,WSC00,Agency Staff,0003,175.05,G-Staff Ltd,120173,26/09/2013,10190982
INSERTED DETAIL,Resources & Corporate Governance ,Domestic Waste Collection,WWC00,Agency Staff,0003,1584.69,G-Staff Ltd,120173,26/09/2013,10190982
INSERTED DETAIL,Resources & Corporate Governance ,Trade Waste Collection,WWC01,Agency Staff,0003,278.80,G-Staff Ltd,120173,26/09/2013,10190982
INSERTED DETAIL,Resources & Corporate Governance ,Street Cleansing,WSC00,Agency Staff,0003,496.88,G-Staff Ltd,120173,19/09/2013,10191292
INSERTED DETAIL,Resources & Corporate Governance ,Domestic Waste Collection,WWC00,Agency Staff,0003,956.75,G-Staff Ltd,120173,19/09/2013,10191292
INSERTED DETAIL,Resources & Corporate Governance ,Trade Waste Collection,WWC01,Agency Staff,0003,534.11,G-Staff Ltd,120173,19/09/2013,10191292
INSERTED DETAIL,Sustainable Environment ,Caldecott Park/Town Centre Area,PKS00,Maintenance of Equipment,0301,1314.36,Proludic,123148,19/09/2013,10190759
INSERTED DETAIL,Capital Program ,Open Spaces Refurbishment,LEI08,Capital Contract Payments,5000,106604.99,Proludic,123148,19/09/2013,10191213
INSERTED DETAIL,Resources & Corporate Governance ,Central Telephone Service,TEL00,Telephone Expenses,0371,1071.98,Cable & Wireless/T/A Vodafone,123224,12/09/2013,10191056
INSERTED DETAIL,Resources & Corporate Governance ,Maintenance of Customer Services Systems,CIS21,Software Maintenance,0374,520.00,MCPC Systems (UK) Ltd,125225,19/09/2013,10191407
INSERTED DETAIL,Resources & Corporate Governance ,Garage Internal,WVR01,Materials,0303,589.33,Shell U.K. Oil Products Limited,125672,12/09/2013,10190803
INSERTED DETAIL,Resources & Corporate Governance ,TREE WORKS,WGM01,Vehicle Running Costs,0201,220.00,Guest Trucks,126437,12/09/2013,10190503
INSERTED DETAIL,Capital Program ,Purchase of Vehicles,VHC00,Miscellaneous Capital Expenditure,5020,12050.00,Guest Trucks,126437,12/09/2013,10190503
INSERTED DETAIL,Resources & Corporate Governance ,WSU Depot,WDP00,Messing Facilities,0332,570.00,K9 Security,128281,12/09/2013,10190879
INSERTED DETAIL,Resources & Corporate Governance ,Street Cleansing,WSC00,Vehicle Repair and Maintenance,0200,23.66,ABS Limited,129026,19/09/2013,10190958
INSERTED DETAIL,Resources & Corporate Governance ,Domestic Waste Collection,WWC00,Vehicle Repair and Maintenance,0200,256.66,ABS Limited,129026,19/09/2013,10190958
INSERTED DETAIL,Resources & Corporate Governance ,Garage Internal,WVR01,Materials,0303,177.90,ABS Limited,129026,19/09/2013,10190958
INSERTED DETAIL,Resources & Corporate Governance,Handy man,WHM00,External Contractor & Operator,0742,746.50,M P Hudson & Son,129334,05/09/2013,10190804
INSERTED DETAIL,Resources & Corporate Governance,Handy man,WHM00,External Contractor & Operator,0742,700.00,M P Hudson & Son,129334,12/09/2013,10191059
INSERTED DETAIL,Resources & Corporate Governance,Handy man,WHM00,External Contractor & Operator,0742,607.50,M P Hudson & Son,129334,19/09/2013,10191424
INSERTED DETAIL,Resources & Corporate Governance ,IT Procurement,CMP00,IT Capital Expenditure,5025,417.50,Corporate Direct (Europe) Ltd,129644,19/09/2013,10191368
INSERTED DETAIL,Capital Program ,Electric to Gas Conversions,HIM04,Capital Contract Payments,5000,1358.40,National Grid Gas plc,130213,12/09/2013,10191195
INSERTED DETAIL,Capital Program ,Electric to Gas Conversions,HIM04,Capital Contract Payments,5000,679.20,National Grid Gas plc,130213,12/09/2013,10191196
INSERTED DETAIL,Capital Program ,Electric to Gas Conversions,HIM04,Capital Contract Payments,5000,2037.60,National Grid Gas plc,130213,12/09/2013,10191197
INSERTED DETAIL,Capital Program ,Electric to Gas Conversions,HIM04,Capital Contract Payments,5000,679.20,National Grid Gas plc,130213,12/09/2013,10191198
INSERTED DETAIL,Resources & Corporate Governance ,Support Services,CIS20,Software Maintenance,0374,3679.80,Toplevel Computing Ltd,131444,26/09/2013,10191527
INSERTED DETAIL,Sustainable Environment,Regulatory Services,REG00,Stationery Supplies,0350,555.00,Pulstar Dataprint Ltd,131716,05/09/2013,10190626
INSERTED DETAIL,Economy Development & Culture,Town Centre CCTV and Management,TVM00,Other Agencies,0734,20115.98,Rugby First Ltd - BID,133176,19/09/2013,10191460
INSERTED DETAIL,Housing Revenue Account ,Unplanned Maintenance and Repair,UMR00,R&M External Contractors,0100,2725.80,Sunfish Services Ltd,133886,05/09/2013,10190844
INSERTED DETAIL,Capital Program ,Fire Risk Assessment,HCE18,Capital Contract Payments,5000,1963.98,Sunfish Services Ltd,133886,12/09/2013,10190964
INSERTED DETAIL,Resources & Corporate Governance ,IT Procurement,CMP00,IT Capital Expenditure,5025,2614.08,Intercept  Ltd,134906,12/09/2013,10191092
INSERTED DETAIL,Resources & Corporate Governance ,Garage Internal,WVR01,Materials,0303,957.20,Brenntag UK Limited,135098,19/09/2013,10188439
INSERTED DETAIL,Housing Revenue Account ,Robotham Close AP,AGP11,Electricity,0130,616.17,Southern Electric,135653,26/09/2013,10191433
INSERTED DETAIL,Housing Revenue Account ,Stretton Court AP,AGP13,Electricity,0130,298.49,Southern Electric,135653,26/09/2013,10191433
INSERTED DETAIL,Housing Revenue Account ,Brookside Pailton AP,AGP40,Electricity,0130,86.66,Southern Electric,135653,26/09/2013,10191433
INSERTED DETAIL,Housing Revenue Account ,Great Balance Brinklow AP,AGP48,Electricity,0130,81.32,Southern Electric,135653,26/09/2013,10191433
INSERTED DETAIL,Housing Revenue Account ,Meadow Way/Primrose Court AP,AGP58,Electricity,0130,36.41,Southern Electric,135653,26/09/2013,10191433
INSERTED DETAIL,Housing Revenue Account ,Norman Road AP,AGP60,Electricity,0130,27.68,Southern Electric,135653,26/09/2013,10191433
INSERTED DETAIL,Housing Revenue Account ,Patterdale AP,AGP61,Electricity,0130,113.89,Southern Electric,135653,26/09/2013,10191433
INSERTED DETAIL,Housing Revenue Account ,Parkfield Road/Lea Crescent AP,AGP71,Electricity,0130,98.93,Southern Electric,135653,26/09/2013,10191433
INSERTED DETAIL,Housing Revenue Account ,Supervision and Management General,MAN00,Electricity,0130,197.36,Southern Electric,135653,26/09/2013,10191433
INSERTED DETAIL,Resources & Corporate Governance ,Council Tax and NNDR Collection,CTX01,External Legal Costs,0741,1385.00,Summers Nigh Law,136330,12/09/2013,10191007
INSERTED DETAIL,Sustainable Environment,Bikeability,REG10,Other Miscellaneous Expenses,0444,581.00,Solon Security Ltd,137493,19/09/2013,10191312
INSERTED DETAIL,Housing Revenue Account ,Asbestos Surveys,UMR05,R&M External Contractors,0100,780.00,Rider Levett Bucknall UK Ltd,139918,19/09/2013,10191441
INSERTED DETAIL,Capital Program ,Fire Risk Assessment,HCE18,Capital Contract Payments,5000,475.00,Rider Levett Bucknall UK Ltd,139918,19/09/2013,10191441
INSERTED DETAIL,Capital Program ,Kitchen Modifications,HIK10,Capital Contract Payments,5000,390.00,Rider Levett Bucknall UK Ltd,139918,19/09/2013,10191441
INSERTED DETAIL,Capital Program ,Electric to Gas Conversions,HIM04,Capital Contract Payments,5000,130.00,Rider Levett Bucknall UK Ltd,139918,19/09/2013,10191441
INSERTED DETAIL,Capital Program ,Bathroom Modifications,HIS01,Capital Contract Payments,5000,130.00,Rider Levett Bucknall UK Ltd,139918,19/09/2013,10191441
INSERTED DETAIL,Resources & Corporate Governance ,Grounds Maintenance,WGM00,External Contractor & Operator,0742,1250.00,D J Whitlock Plant Hire,140156,05/09/2013,10190478
INSERTED DETAIL,Resources & Corporate Governance ,Grounds Maintenance,WGM00,External Contractor & Operator,0742,1250.00,D J Whitlock Plant Hire,140156,05/09/2013,10190479
INSERTED DETAIL,Resources & Corporate Governance ,Grounds Maintenance,WGM00,External Contractor & Operator,0742,1350.00,D J Whitlock Plant Hire,140156,26/09/2013,10191425
INSERTED DETAIL,Resources & Corporate Governance ,Grounds Maintenance,WGM00,External Contractor & Operator,0742,650.00,D J Whitlock Plant Hire,140156,26/09/2013,10191426
INSERTED DETAIL,Resources & Corporate Governance ,Maintenance of Customer Services Systems,CIS21,Software Maintenance,0374,4409.01,Midland Software Ltd,140463,05/09/2013,10190707
INSERTED DETAIL,Resources & Corporate Governance ,Customer and Information Strategy,CIS10,Telephone Expenses,0371,750.62,Zen Internet Ltd,141612,05/09/2013,10190176
INSERTED DETAIL,Resources & Corporate Governance ,Council Tax and NNDR Collection,CTX01,Telephone Expenses,0371,21.28,Zen Internet Ltd,141612,05/09/2013,10190176
INSERTED DETAIL,Resources & Corporate Governance ,Customer and Information Strategy,CIS10,Telephone Expenses,0371,750.62,Zen Internet Ltd,141612,26/09/2013,10191439
INSERTED DETAIL,Resources & Corporate Governance ,Council Tax and NNDR Collection,CTX01,Telephone Expenses,0371,21.27,Zen Internet Ltd,141612,26/09/2013,10191439
INSERTED DETAIL,Resources & Corporate Governance ,Customer and Information Strategy,CIS10,Hardware Maintenance,0376,721.00,Enforce Technology Ltd,142074,12/09/2013,10190724
INSERTED DETAIL,Resources & Corporate Governance ,Electoral Registration,ERG00,New Equipment,0300,1250.00,Xpress Software Solutions Ltd,143411,05/09/2013,10190333
INSERTED DETAIL,Resources & Corporate Governance ,General Financial Services,GFS00,External Contractor & Operator,0742,594.73,Local Government Association,144471,19/09/2013,10191383
INSERTED DETAIL,Resources & Corporate Governance ,Land Charges,LCH00,External Legal Costs,0741,1007.28,Local Government Association,144471,26/09/2013,10191442
INSERTED DETAIL,Housing Revenue Account ,Control Centre CCTV,CCE01,External Contractor & Operator,0742,15574.92,Securitas Security Personnel Ltd,145079,05/09/2013,10190695
INSERTED DETAIL,Housing Revenue Account ,Property Maintenance,MAN23,Agency Staff,0003,631.79,James Andrews Recruitment Solutions Ltd,145100,05/09/2013,10190605
INSERTED DETAIL,Housing Revenue Account ,Property Maintenance,MAN23,Agency Staff,0003,681.50,James Andrews Recruitment Solutions Ltd,145100,05/09/2013,10190663
INSERTED DETAIL,Housing Revenue Account ,Property Maintenance,MAN23,Agency Staff,0003,1145.50,James Andrews Recruitment Solutions Ltd,145100,05/09/2013,10190664
INSERTED DETAIL,Housing Revenue Account ,Property Maintenance,MAN23,Agency Staff,0003,493.00,James Andrews Recruitment Solutions Ltd,145100,05/09/2013,10190665
INSERTED DETAIL,Housing Revenue Account ,Property Maintenance,MAN23,Agency Staff,0003,750.00,James Andrews Recruitment Solutions Ltd,145100,05/09/2013,10190666
INSERTED DETAIL,Housing Revenue Account ,Property Maintenance,MAN23,Agency Staff,0003,675.00,James Andrews Recruitment Solutions Ltd,145100,05/09/2013,10190667
INSERTED DETAIL,Housing Revenue Account ,Property Maintenance,MAN23,Agency Staff,0003,825.00,James Andrews Recruitment Solutions Ltd,145100,05/09/2013,10190668
INSERTED DETAIL,Sustainable Inclusive Communities,Housing Options Team,HOT00,Agency Staff,0003,488.20,James Andrews Recruitment Solutions Ltd,145100,12/09/2013,10190669
INSERTED DETAIL,Resources & Corporate Governance ,General Administration,WAD00,Agency Staff,0003,316.50,Blue Arrow Limited,145492,26/09/2013,10190967
INSERTED DETAIL,Resources & Corporate Governance ,Grounds Maintenance,WGM00,Agency Staff,0003,253.58,Blue Arrow Limited,145492,26/09/2013,10190967
INSERTED DETAIL,Resources & Corporate Governance,Handy man,WHM00,Agency Staff,0003,1068.22,Blue Arrow Limited,145492,26/09/2013,10190967
INSERTED DETAIL,Resources & Corporate Governance ,Street Cleansing,WSC00,Agency Staff,0003,1593.69,Blue Arrow Limited,145492,26/09/2013,10190967
INSERTED DETAIL,Resources & Corporate Governance ,Domestic Waste Collection,WWC00,Agency Staff,0003,1060.73,Blue Arrow Limited,145492,26/09/2013,10190967
INSERTED DETAIL,Resources & Corporate Governance ,General Administration,WAD00,Agency Staff,0003,395.63,Blue Arrow Limited,145492,26/09/2013,10191528
INSERTED DETAIL,Resources & Corporate Governance ,Grounds Maintenance,WGM00,Agency Staff,0003,257.60,Blue Arrow Limited,145492,26/09/2013,10191528
INSERTED DETAIL,Resources & Corporate Governance,Handy man,WHM00,Agency Staff,0003,1210.05,Blue Arrow Limited,145492,26/09/2013,10191528
INSERTED DETAIL,Resources & Corporate Governance ,Street Cleansing,WSC00,Agency Staff,0003,1837.56,Blue Arrow Limited,145492,26/09/2013,10191528
INSERTED DETAIL,Resources & Corporate Governance ,Domestic Waste Collection,WWC00,Agency Staff,0003,600.27,Blue Arrow Limited,145492,26/09/2013,10191528
INSERTED DETAIL,Resources & Corporate Governance ,General Administration,WAD00,Agency Staff,0003,395.63,Blue Arrow Limited,145492,26/09/2013,10191531
INSERTED DETAIL,Resources & Corporate Governance ,Grounds Maintenance,WGM00,Agency Staff,0003,255.59,Blue Arrow Limited,145492,26/09/2013,10191531
INSERTED DETAIL,Resources & Corporate Governance,Handy man,WHM00,Agency Staff,0003,1127.01,Blue Arrow Limited,145492,26/09/2013,10191531
INSERTED DETAIL,Resources & Corporate Governance ,Street Cleansing,WSC00,Agency Staff,0003,1468.43,Blue Arrow Limited,145492,26/09/2013,10191531
INSERTED DETAIL,Resources & Corporate Governance ,Domestic Waste Collection,WWC00,Agency Staff,0003,871.35,Blue Arrow Limited,145492,26/09/2013,10191531
INSERTED DETAIL,Resources & Corporate Governance ,General Financial Services,GFS00,External Contractor & Operator,0742,18098.00,Grant Thornton UK LLP,145501,26/09/2013,10191616
INSERTED DETAIL,Capital Program ,Open Spaces Refurbishment,LEI08,Capital Contract Payments,5000,2812.50,Nortoft Partnerships Ltd,145573,19/09/2013,10190630
INSERTED DETAIL,Capital Program ,Open Spaces Refurbishment,LEI08,Capital Contract Payments,5000,2812.50,Nortoft Partnerships Ltd,145573,19/09/2013,10190631
INSERTED DETAIL,Sustainable Environment ,Caldecott Park/Town Centre Area,PKS00,Maintenance of Equipment,0301,600.00,Pro-Teq Surfacing (UK) Ltd,145825,26/09/2013,10191277
INSERTED DETAIL,Resources & Corporate Governance ,Highways,WHG00,Materials,0303,482.53,Midland Rock Leicester Ltd,145830,12/09/2013,10190761
INSERTED DETAIL,Capital Program ,Disabled Facilities Grant,REN01,Capital Grants,5014,4768.00,Inhouse Renovations,145963,19/09/2013,10191408
INSERTED DETAIL,Capital Program ,Disabled Facilities Grant,REN01,Capital Grants,5014,4485.00,Inhouse Renovations,145963,26/09/2013,10191530
INSERTED DETAIL,Resources & Corporate Governance ,Human Resources Centralised Services,RES31,Training fees,0011,850.00,SB Asbestos Management Ltd,146090,19/09/2013,10191369
INSERTED DETAIL,Capital Program ,Disabled Adaptations,HCR01,Capital Contract Payments,5000,2311.29,Easibathe Limited,146401,12/09/2013,10191129
INSERTED DETAIL,Capital Program ,Disabled Adaptations,HCR01,Capital Contract Payments,5000,1530.81,Easibathe Limited,146401,12/09/2013,10191130
INSERTED DETAIL,Economy Development & Culture,Planning General/Income,PLN00,Training fees,0011,103.50,MBL Seminars,146589,12/09/2013,10189835
INSERTED DETAIL,Resources & Corporate Governance ,Legal Services,DEM20,Conference & Seminar Fees,0401,396.50,MBL Seminars,146589,12/09/2013,10189835
INSERTED DETAIL,Resources & Corporate Governance ,Domestic Waste Collection,WWC00,Agency Staff,0003,503.90,Fresh Recruitment Solutions (FRS) Ltd,146784,12/09/2013,10190871
INSERTED DETAIL,Resources & Corporate Governance ,Domestic Waste Collection,WWC00,Agency Staff,0003,239.14,Fresh Recruitment Solutions (FRS) Ltd,146784,12/09/2013,10190872
INSERTED DETAIL,Resources & Corporate Governance ,Trade Waste Collection,WWC01,Agency Staff,0003,219.87,Fresh Recruitment Solutions (FRS) Ltd,146784,12/09/2013,10190872
INSERTED DETAIL,Resources & Corporate Governance ,Trade Waste Collection,WWC01,Agency Staff,0003,467.41,Fresh Recruitment Solutions (FRS) Ltd,146784,19/09/2013,10191229
INSERTED DETAIL,Economy Development & Culture,Building Control Services,BCS00,Postage & Distribution,0370,0.69,TNT Post Midlands Ltd,146983,12/09/2013,10190585
INSERTED DETAIL,Economy Development & Culture,Building Control Services Non-Fee Earning Account,BCS01,Postage & Distribution,0370,0.69,TNT Post Midlands Ltd,146983,12/09/2013,10190585
INSERTED DETAIL,Economy Development & Culture,Building Regulation Fee Earning Account,BCS99,Postage & Distribution,0370,12.37,TNT Post Midlands Ltd,146983,12/09/2013,10190585
INSERTED DETAIL,Resources & Corporate Governance,Central Business Support Services,CSS15,Postage & Distribution,0370,57.80,TNT Post Midlands Ltd,146983,12/09/2013,10190585
INSERTED DETAIL,Resources & Corporate Governance ,Council Tax and NNDR Collection,CTX01,Postage & Distribution,0370,200.87,TNT Post Midlands Ltd,146983,12/09/2013,10190585
INSERTED DETAIL,Resources & Corporate Governance ,Electoral Registration,ERG00,Postage & Distribution,0370,23.23,TNT Post Midlands Ltd,146983,12/09/2013,10190585
INSERTED DETAIL,Sustainable Inclusive Communities,Housing Benefit Administration,HBA00,Postage & Distribution,0370,140.51,TNT Post Midlands Ltd,146983,12/09/2013,10190585
INSERTED DETAIL,Housing Revenue Account ,Supervision and Management General,MAN00,Postage & Distribution,0370,60.63,TNT Post Midlands Ltd,146983,12/09/2013,10190585
INSERTED DETAIL,Resources & Corporate Governance ,General Administration,WAD00,Postage & Distribution,0370,17.85,TNT Post Midlands Ltd,146983,12/09/2013,10190585
INSERTED DETAIL,Economy Development & Culture,Building Control Services,BCS00,Postage & Distribution,0370,0.94,TNT Post Midlands Ltd,146983,19/09/2013,10190991
INSERTED DETAIL,Economy Development & Culture,Building Control Services Non-Fee Earning Account,BCS01,Postage & Distribution,0370,0.94,TNT Post Midlands Ltd,146983,19/09/2013,10190991
INSERTED DETAIL,Economy Development & Culture,Building Regulation Fee Earning Account,BCS99,Postage & Distribution,0370,16.83,TNT Post Midlands Ltd,146983,19/09/2013,10190991
INSERTED DETAIL,Resources & Corporate Governance,Central Business Support Services,CSS15,Postage & Distribution,0370,28.63,TNT Post Midlands Ltd,146983,19/09/2013,10190991
INSERTED DETAIL,Resources & Corporate Governance ,Council Tax and NNDR Collection,CTX01,Postage & Distribution,0370,192.95,TNT Post Midlands Ltd,146983,19/09/2013,10190991
INSERTED DETAIL,Resources & Corporate Governance ,Electoral Registration,ERG00,Postage & Distribution,0370,56.94,TNT Post Midlands Ltd,146983,19/09/2013,10190991
INSERTED DETAIL,Sustainable Inclusive Communities,Housing Benefit Administration,HBA00,Postage & Distribution,0370,114.53,TNT Post Midlands Ltd,146983,19/09/2013,10190991
INSERTED DETAIL,Housing Revenue Account ,Supervision and Management General,MAN00,Postage & Distribution,0370,30.59,TNT Post Midlands Ltd,146983,19/09/2013,10190991
INSERTED DETAIL,Resources & Corporate Governance ,General Administration,WAD00,Postage & Distribution,0370,12.41,TNT Post Midlands Ltd,146983,19/09/2013,10190991
INSERTED DETAIL,Economy Development & Culture,Building Control Services,BCS00,Postage & Distribution,0370,0.51,TNT Post Midlands Ltd,146983,26/09/2013,10191281
INSERTED DETAIL,Economy Development & Culture,Building Control Services Non-Fee Earning Account,BCS01,Postage & Distribution,0370,0.51,TNT Post Midlands Ltd,146983,26/09/2013,10191281
INSERTED DETAIL,Economy Development & Culture,Building Regulation Fee Earning Account,BCS99,Postage & Distribution,0370,9.13,TNT Post Midlands Ltd,146983,26/09/2013,10191281
INSERTED DETAIL,Resources & Corporate Governance,Central Business Support Services,CSS15,Postage & Distribution,0370,119.82,TNT Post Midlands Ltd,146983,26/09/2013,10191281
INSERTED DETAIL,Resources & Corporate Governance ,Council Tax and NNDR Collection,CTX01,Postage & Distribution,0370,36.87,TNT Post Midlands Ltd,146983,26/09/2013,10191281
INSERTED DETAIL,Sustainable Inclusive Communities,Housing Benefit Administration,HBA00,Postage & Distribution,0370,56.42,TNT Post Midlands Ltd,146983,26/09/2013,10191281
INSERTED DETAIL,Housing Revenue Account ,Supervision and Management General,MAN00,Postage & Distribution,0370,156.69,TNT Post Midlands Ltd,146983,26/09/2013,10191281
INSERTED DETAIL,Economy Development & Culture,Visitor Centre,VSC00,Postage & Distribution,0370,5.03,TNT Post Midlands Ltd,146983,26/09/2013,10191281
INSERTED DETAIL,Resources & Corporate Governance ,General Administration,WAD00,Postage & Distribution,0370,34.07,TNT Post Midlands Ltd,146983,26/09/2013,10191281
INSERTED DETAIL,Economy Development & Culture,Visitor Centre,VSC00,Purchases for Resale,0305,479.25,Namesakes Global Ltd,147037,12/09/2013,10191141
INSERTED DETAIL,Resources & Corporate Governance ,Domestic Waste Collection,WWC00,External Contractor & Operator,0742,750.00,James Baxter Haulage Ltd,147159,12/09/2013,10190859
INSERTED DETAIL,Resources & Corporate Governance,Corporate Property R&M,CPA01,R&M External Contractors,0100,418.00,AirTech Controls Ltd,147262,05/09/2013,10190609
INSERTED DETAIL,Resources & Corporate Governance,Corporate Property R&M,CPA01,R&M External Contractors,0100,4338.75,Arden Construction Ltd,147430,19/09/2013,10190979
INSERTED DETAIL,Resources & Corporate Governance,Corporate Property R&M,CPA01,R&M External Contractors,0100,2884.00,Arden Construction Ltd,147430,19/09/2013,10190980
INSERTED DETAIL,Resources & Corporate Governance ,Customer and Information Strategy,CIS10,Software Maintenance,0374,5470.00,Commercial IT Services Ltd,147434,12/09/2013,10189598
INSERTED DETAIL,Capital Program ,Kitchen Modifications,HIK10,Capital Contract Payments,5000,8261.87,Rixonway Kitchens Ltd,147446,12/09/2013,10190919
INSERTED DETAIL,Resources & Corporate Governance ,Grounds Maintenance,WGM00,Vehicle Repair and Maintenance,0200,665.68,Tallis Amos Group Limited,147758,19/09/2013,10190961
INSERTED DETAIL,Resources & Corporate Governance ,Highways,WHG00,External Contractor & Operator,0742,1039.02,Currall Lewis & Martin (Construction) Ltd,147769,19/09/2013,10191444
INSERTED DETAIL,Resources & Corporate Governance ,Highways,WHG00,External Contractor & Operator,0742,3345.80,Currall Lewis & Martin (Construction) Ltd,147769,19/09/2013,10191445
INSERTED DETAIL,Resources & Corporate Governance,Handy man,WHM00,External Contractor & Operator,0742,484.00,Coventry Garage Doors,147883,05/09/2013,10187953
INSERTED DETAIL,Resources & Corporate Governance,Handy man,WHM00,External Contractor & Operator,0742,506.40,Coventry Garage Doors,147883,19/09/2013,10190237
INSERTED DETAIL,Capital Program ,Queen's Diamond Jubilee Leisure Centre Project,LEI03,Capital Contract Payments,5000,930586.49,Shepherd Construction Ltd,148014,26/09/2013,10191619
INSERTED DETAIL,Resources & Corporate Governance,Handy man,WHM00,External Contractor & Operator,0742,585.00,Dean Hudson,148035,12/09/2013,10191058
INSERTED DETAIL,Resources & Corporate Governance,Handy man,WHM00,External Contractor & Operator,0742,502.50,Dean Hudson,148035,19/09/2013,10191423
INSERTED DETAIL,Resources & Corporate Governance ,Customer and Information Strategy,CIS10,Software Maintenance,0374,9292.46,Softcat Ltd,148394,19/09/2013,10191308
INSERTED DETAIL,Capital Program ,Pettiver Crescent,PCH00,Capital Contract Payments,5000,617.50,"Gotch, Saunders & Surridge LLP , t/a GSS Architecture",148432,19/09/2013,10190751
INSERTED DETAIL,Capital Program ,Corporate Property Enhancements,CPE00,Capital Contract Payments,5000,500.00,"Gotch, Saunders & Surridge LLP , t/a GSS Architecture",148432,19/09/2013,10191455
INSERTED DETAIL,Resources & Corporate Governance,Handy man,WHM00,Materials,0303,594.25,A & A Lamb Ltd,148461,19/09/2013,10191127
INSERTED DETAIL,Resources & Corporate Governance,Corporate Property R&M,CPA01,R&M External Contractors,0100,3700.00,Envirotech Building Services Ltd,148501,19/09/2013,10190285
INSERTED DETAIL,Resources & Corporate Governance,Handy man,WHM00,External Contractor & Operator,0742,3565.00,Garforth Scaffolding Ltd,148530,12/09/2013,10187563
INSERTED DETAIL,Resources & Corporate Governance,Handy man,WHM00,External Contractor & Operator,0742,-450.00,Garforth Scaffolding Ltd,148530,12/09/2013,10190974
INSERTED DETAIL,Resources & Corporate Governance ,IT Procurement,CMP00,IT Capital Expenditure,5025,52837.90,Intrinsic Technology Ltd,148620,19/09/2013,10190924
INSERTED DETAIL,Resources & Corporate Governance ,IT Procurement,CMP00,IT Capital Expenditure,5025,9674.73,Intrinsic Technology Ltd,148620,19/09/2013,10191316
INSERTED DETAIL,Sustainable Inclusive Communities,CL Grants,CGS00,Grants To Voluntary Organisations,0720,1150.00,Fareham Youth Trust,148627,19/09/2013,10191382
INSERTED DETAIL,Housing Revenue Account ,Gas Heating Systems,UMR01,R&M External Contractors,0100,866.92,Robert Heath Heating Ltd,148858,12/09/2013,10191090
INSERTED DETAIL,Housing Revenue Account ,Gas Heating Systems,UMR01,R&M External Contractors,0100,19190.00,Robert Heath Heating Ltd,148858,19/09/2013,10191381
INSERTED DETAIL,Resources & Corporate Governance ,IT Procurement,CMP00,IT Capital Expenditure,5025,501.61,Sapphire Network Services Ltd,148862,05/09/2013,10190613
INSERTED DETAIL,Resources & Corporate Governance ,IT Procurement,CMP00,IT Capital Expenditure,5025,1938.74,Sapphire Network Services Ltd,148862,12/09/2013,10191145
INSERTED DETAIL,Economy Development & Culture,Economic Development General,ECD00,Borough Local Plan,0452,2914.00,LUC,148877,26/09/2013,10191450
INSERTED DETAIL,Capital Program ,Kitchen Modifications,HIK10,Capital Contract Payments,5000,900.00,Capita Symonds Ltd,148946,05/09/2013,10190587
INSERTED DETAIL,Resources & Corporate Governance ,General Financial Services,GFS00,Subscriptions,0421,500.00,North Kesteven District Council,148948,05/09/2013,10190701
INSERTED DETAIL,Resources & Corporate Governance ,Grounds Maintenance,WGM00,Materials,0303,618.02,Citysquared Limited,148968,05/09/2013,10190837
INSERTED DETAIL,Economy Development & Culture,The Benn Hall,BHL00,Purchases for Resale,0305,814.51,Matthew Clark Wholesale Ltd,148975,19/09/2013,10191454
INSERTED DETAIL,Sustainable Environment ,Burglary,CAD03,Development Activities,0450,10636.44,QRO Solutions Ltd,148976,26/09/2013,10191535
INSERTED DETAIL,Economy Development & Culture,Visitor Centre,VSC00,Purchases for Resale,0305,998.50,Canterbury of New Zealand Ltd,149040,26/09/2013,10191539
INSERTED DETAIL,Resources & Corporate Governance,Handy man,WHM00,External Contractor & Operator,0742,500.00,PJR Services,149062,19/09/2013,10191374
INSERTED DETAIL,Housing Revenue Account ,Repairs and Maintenance - Void works,UMR09,R&M External Contractors,0100,520.00,Elite Surveyors Ltd,149107,12/09/2013,10191186
INSERTED DETAIL,Resources & Corporate Governance ,IT Procurement,CMP00,IT Capital Expenditure,5025,3312.67,Advent IM Ltd,149114,12/09/2013,10190284
INSERTED DETAIL,Resources & Corporate Governance ,Customer and Information Strategy,CIS10,Consultancy Costs,0740,850.00,Advent IM Ltd,149114,12/09/2013,10190880
INSERTED DETAIL,Capital Program ,Queen's Diamond Jubilee Leisure Centre Project,LEI03,Capital Contract Payments,5000,750.00,The ASA,149116,19/09/2013,10190981
INSERTED DETAIL,Resources & Corporate Governance ,Town Hall,OFF00,Contract Cleaning,0170,4195.83,Superclean Services Wothorpe,149153,05/09/2013,10190573
INSERTED DETAIL,Resources & Corporate Governance ,WSU Depot,WDP00,Contract Cleaning,0170,395.83,Superclean Services Wothorpe,149153,05/09/2013,10190573
INSERTED DETAIL,Resources & Corporate Governance ,Grounds Maintenance,WGM00,Contract Cleaning,0170,200.00,Superclean Services Wothorpe,149153,05/09/2013,10190573
INSERTED DETAIL,Housing Revenue Account ,Sheltered Housing,AGP00,Contract Cleaning,0170,11850.58,Superclean Services Wothorpe,149153,05/09/2013,10190593
INSERTED DETAIL,Sustainable Inclusive Communities,Housing Options Team,HOT00,Contract Cleaning,0170,112.51,Superclean Services Wothorpe,149153,05/09/2013,10190593
INSERTED DETAIL,Housing Revenue Account ,Estate Management,MAN22,Contract Cleaning,0170,2552.47,Superclean Services Wothorpe,149153,05/09/2013,10190593
INSERTED DETAIL,Housing Revenue Account ,Multi-Storey Flats,MSF00,Contract Cleaning,0170,1434.45,Superclean Services Wothorpe,149153,05/09/2013,10190593
INSERTED DETAIL,Resources & Corporate Governance,Handy man,WHM00,External Contractor & Operator,0742,806.25,R Duffy Services,149161,05/09/2013,10190806
INSERTED DETAIL,Resources & Corporate Governance,Handy man,WHM00,External Contractor & Operator,0742,893.75,R Duffy Services,149161,12/09/2013,10190920
INSERTED DETAIL,Resources & Corporate Governance,Handy man,WHM00,External Contractor & Operator,0742,850.00,R Duffy Services,149161,19/09/2013,10191060
INSERTED DETAIL,Economy Development & Culture,Economic Development General,ECD00,Other,0763,913.96,Coton Forward,149194,05/09/2013,10190603
INSERTED DETAIL,Resources & Corporate Governance,Handy man,WHM00,External Contractor & Operator,0742,822.00,Stormseal Roofing (Nationwide) Ltd,149226,19/09/2013,10191126
INSERTED DETAIL,Resources & Corporate Governance,Handy man,WHM00,External Contractor & Operator,0742,2412.00,Stormseal Roofing (Nationwide) Ltd,149226,26/09/2013,10191485
INSERTED DETAIL,Resources & Corporate Governance,Handy man,WHM00,External Contractor & Operator,0742,1472.00,Stormseal Roofing (Nationwide) Ltd,149226,26/09/2013,10191486
INSERTED DETAIL,,Balance Sheet,BS,Car Loan Scheme,9261,2900.00,West Midlands Motors Ltd,149232,05/09/2013,10190733
INSERTED DETAIL,Economy Development & Culture,Planning General/Income,PLN00,External Legal Costs,0741,500.00,Iqbal Mohammed,149236,12/09/2013,10190813
INSERTED DETAIL,Economy Development & Culture,Queens Diamond Jubilee Centre,QDJ00,External Contractor & Operator,0742,60413.92,GLL ( Greenwich Leisure Ltd),149240,05/09/2013,10190854
INSERTED DETAIL,Economy Development & Culture,Queens Diamond Jubilee Centre,QDJ00,External Contractor & Operator,0742,60632.11,GLL ( Greenwich Leisure Ltd),149240,05/09/2013,10190856
INSERTED DETAIL,Economy Development & Culture,Queens Diamond Jubilee Centre,QDJ00,External Contractor & Operator,0742,60901.55,GLL ( Greenwich Leisure Ltd),149240,05/09/2013,10190858
INSERTED DETAIL,Capital Program ,Open Spaces Refurbishment,LEI08,Capital Contract Payments,5000,660.00,Sustainable Furniture (UK) Ltd,149243,26/09/2013,10191310
INSERTED DETAIL,Economy Development & Culture,Planning General/Income,PLN00,External Legal Costs,0741,925.00,Mr Jonathan Salmon,149244,12/09/2013,10190971
INSERTED DETAIL,Capital Program ,Open Spaces Refurbishment,LEI08,Capital Contract Payments,5000,2750.00,Sita Trust Ltd,149245,12/09/2013,10190903
INSERTED DETAIL,Economy Development & Culture,The Benn Hall,BHL00,Special Events/Activities,0447,775.00,Neville Staple Band,149246,12/09/2013,10190902
INSERTED DETAIL,Economy Development & Culture,Planning General/Income,PLN00,Costs Awarded,0745,2500.00,I G Estates Ltd,149253,12/09/2013,10191138
INSERTED DETAIL,Economy Development & Culture,Planning General/Income,PLN00,Fees & Charges - Outside Scope,1403,5120.80,The Manufacturing Technology Centre,149254,12/09/2013,10191137
INSERTED DETAIL,Economy Development & Culture,The Benn Hall,BHL00,Special Events/Activities,0447,500.00,LRS Productions,149265,19/09/2013,10191375
INSERTED DETAIL,,Balance Sheet,BS,Revenue Grants,9889,13512.00,Mediation and Community Support,149269,19/09/2013,10191399
INSERTED DETAIL,Economy Development & Culture,Grants and Subscriptions,LGS00,Grants To Voluntary Organisations,0720,1000.00,Parents & Friends of St Matthews Bloxam School,149278,26/09/2013,10191522
INSERTED DETAIL,Economy Development & Culture,The Benn Hall,BHL00,Special Events/Activities,0447,1225.00,I.J Hill T/a Ian Hill Music Services,149283,26/09/2013,10191660
INSERTED DETAIL,Economy Development & Culture,Planning General/Income,PLN00,External Legal Costs,0741,994.00,Davitt Jones Bould Ltd,149292,26/09/2013,10191755
detail,Economy Development & Culture,Planning General/Income,PLN00,External Legal Costs,0741,500.00,Davitt Jones Bould Ltd,149292,26/09/2013,10191758
,,Balance Sheet,BS,Cov & Warks Pooling Fund,9476,1380109.00,Cov & Warks Pooling Fund,,18/09/2013,29273
,,Balance Sheet,BS,Business Rate Retention Scheme payment,9476,2118341.00,CLG,,19/09/2013,29254
,,Balance Sheet,BS,Business Rate Retention Scheme payment,9476,424665.00,WCC County Fund,,19/09/2013,29255
,Sustainable Enironment,Caldecott Park Caf� & Benn Hall,WGM02,Purchases for Resale,0303,831.00,Booker Ltd,,17/09/2013,29219
,Resources & Corporate Governance ,General Financial Services,GFS00,Payment Card Costs,0444,1049.06,Capita,,30/09/2013,29349
